[Event "*** Titled Tuesday Blitz"]
[Site "Chess.com"]
[Date "2019.08.06"]
[Round "9"]
[White "jefferyx"]
[Black "VladimirBelous"]
[Result "1-0"]
[WhiteElo "2938"]
[BlackElo "2815"]
[TimeControl "180+2"]
[EndTime "15:09:46 PDT"]
[Termination "jefferyx won by resignation"]

1. c4 {[%clk 0:03:01.9]} 1... c5 {[%clk 0:03:00.4]} 2. Nf3 {[%clk 0:03:03.1]}
2... Nc6 {[%clk 0:03:02]} 3. Nc3 {[%clk 0:03:04]} 3... g6 {[%clk 0:03:03.5]} 4.
e3 {[%clk 0:03:05.4]} 4... Bg7 {[%clk 0:03:01.5]} 5. d4 {[%clk 0:03:06.7]} 5...
d6 {[%clk 0:02:49.3]} 6. Be2 {[%clk 0:03:07.5]} 6... Bg4 {[%clk 0:02:47.3]} 7.
d5 {[%clk 0:03:05.4]} 7... Nb8 {[%clk 0:02:34.1]} 8. O-O {[%clk 0:02:57.4]} 8...
Nf6 {[%clk 0:02:34.8]} 9. Ne1 {[%clk 0:02:49.1]} 9... Bxe2 {[%clk 0:02:33.4]}
10. Qxe2 {[%clk 0:02:51]} 10... O-O {[%clk 0:02:34.5]} 11. e4 {[%clk 0:02:52.9]}
11... a6 {[%clk 0:02:30.6]} 12. Nd3 {[%clk 0:02:52.4]} 12... Nfd7 {[%clk
0:02:12.2]} 13. Bg5 {[%clk 0:02:35.4]} 13... Re8 {[%clk 0:01:41.6]} 14. f4
{[%clk 0:02:34.4]} 14... b5 {[%clk 0:01:38]} 15. cxb5 {[%clk 0:01:47.3]} 15...
axb5 {[%clk 0:01:39.9]} 16. Nxb5 {[%clk 0:01:49.2]} 16... Qb6 {[%clk 0:01:29.2]}
17. Nc3 {[%clk 0:01:50.2]} 17... Na6 {[%clk 0:01:25.4]} 18. Kh1 {[%clk
0:01:45.4]} 18... Nb4 {[%clk 0:01:23.2]} 19. Nf2 {[%clk 0:01:41.9]} 19... Qa6
{[%clk 0:01:14.4]} 20. Qf3 {[%clk 0:01:42.7]} 20... Nc2 {[%clk 0:01:09.6]} 21.
Rac1 {[%clk 0:01:29.7]} 21... Nd4 {[%clk 0:01:10.3]} 22. Qh3 {[%clk 0:01:30.9]}
22... Nf8 {[%clk 0:00:57.6]} 23. Ng4 {[%clk 0:01:31.1]} 23... Rab8 {[%clk
0:00:49.4]} 24. Rf2 {[%clk 0:01:11.4]} 24... h5 {[%clk 0:00:31.5]} 25. Nh6+
{[%clk 0:01:12.1]} 25... Bxh6 {[%clk 0:00:32.5]} 26. Bxh6 {[%clk 0:01:14]} 26...
Nh7 {[%clk 0:00:34.2]} 27. f5 {[%clk 0:01:11.8]} 27... Nf6 {[%clk 0:00:33.8]}
28. Rd2 {[%clk 0:00:38.3]} 28... Ng4 {[%clk 0:00:34.1]} 29. Be3 {[%clk 0:00:39]}
29... Kg7 {[%clk 0:00:27.1]} 30. Qg3 {[%clk 0:00:37.3]} 30... gxf5 {[%clk
0:00:25.5]} 31. h3 {[%clk 0:00:34.5]} 31... h4 {[%clk 0:00:20.9]} 32. Qxh4
{[%clk 0:00:36]} 32... Rh8 {[%clk 0:00:20.9]} 33. Qg5+ {[%clk 0:00:29.5]} 33...
Kf8 {[%clk 0:00:22.3]} 34. exf5 {[%clk 0:00:31.4]} 34... Nf6 {[%clk 0:00:17.4]}
35. Bxd4 {[%clk 0:00:26]} 35... cxd4 {[%clk 0:00:18.5]} 36. Rxd4 {[%clk
0:00:27.9]} 36... Rxb2 {[%clk 0:00:19.7]} 37. Ne4 {[%clk 0:00:20.2]} 37... Nxe4
{[%clk 0:00:14.2]} 38. Rxe4 {[%clk 0:00:22.1]} 38... f6 {[%clk 0:00:15.7]} 39.
Qe3 {[%clk 0:00:21.9]} 39... Qb7 {[%clk 0:00:13.3]} 40. Rxe7 {[%clk 0:00:21.3]}
40... Qxe7 {[%clk 0:00:06.5]} 41. Rc8+ {[%clk 0:00:22.3]} 41... Kf7 {[%clk
0:00:08.4]} 42. Qxe7+ {[%clk 0:00:23.6]} 42... Kxe7 {[%clk 0:00:10.3]} 43. Rxh8
{[%clk 0:00:24.9]} 43... Rxa2 {[%clk 0:00:11.8]} 44. Rh7+ {[%clk 0:00:24.1]}
44... Ke8 {[%clk 0:00:12.9]} 45. Rb7 {[%clk 0:00:15]} 45... Ra5 {[%clk
0:00:13.7]} 46. Kh2 {[%clk 0:00:11.2]} 46... Rxd5 {[%clk 0:00:15.2]} 47. g4
{[%clk 0:00:13.1]} 47... Rd3 {[%clk 0:00:16.3]} 48. h4 {[%clk 0:00:14.6]} 48...
d5 {[%clk 0:00:14.9]} 49. h5 {[%clk 0:00:16.2]} 49... Kf8 {[%clk 0:00:15.6]} 50.
h6 {[%clk 0:00:17.8]} 50... Kg8 {[%clk 0:00:14.8]} 51. Rg7+ {[%clk 0:00:18.6]}
51... Kh8 {[%clk 0:00:15.5]} 52. Rf7 {[%clk 0:00:20.1]} 52... Re3 {[%clk
0:00:07.7]} 53. Rxf6 {[%clk 0:00:20.3]} 53... d4 {[%clk 0:00:09.4]} 54. Rd6
{[%clk 0:00:16.6]} 54... d3 {[%clk 0:00:11.3]} 55. g5 {[%clk 0:00:18.1]} 1-0

[Event "*** Titled Tuesday Blitz"]
[Site "Chess.com"]
[Date "2019.08.06"]
[Round "9"]
[White "jposthuma"]
[Black "aleccable"]
[Result "0-1"]
[WhiteElo "2416"]
[BlackElo "2329"]
[TimeControl "180+2"]
[EndTime "15:09:54 PDT"]
[Termination "aleccable won by resignation"]

1. d4 {[%clk 0:03:01.9]} 1... b6 {[%clk 0:02:57.9]} 2. e4 {[%clk 0:02:58.8]}
2... Bb7 {[%clk 0:02:58.8]} 3. Bd3 {[%clk 0:02:58.1]} 3... e6 {[%clk 0:03:00.2]}
4. Nd2 {[%clk 0:02:53.3]} 4... c5 {[%clk 0:02:59.6]} 5. c3 {[%clk 0:02:49.4]}
5... Nc6 {[%clk 0:02:56.6]} 6. Ne2 {[%clk 0:02:08.5]} 6... Nf6 {[%clk
0:02:37.3]} 7. O-O {[%clk 0:01:57]} 7... Be7 {[%clk 0:02:37.7]} 8. f4 {[%clk
0:01:46.8]} 8... O-O {[%clk 0:02:09.4]} 9. e5 {[%clk 0:01:35]} 9... Nd5 {[%clk
0:02:10.1]} 10. Ne4 {[%clk 0:01:34.3]} 10... f5 {[%clk 0:02:10.8]} 11. exf6
{[%clk 0:01:32.2]} 11... Nxf6 {[%clk 0:02:08.9]} 12. dxc5 {[%clk 0:01:12.1]}
12... bxc5 {[%clk 0:02:04.9]} 13. Be3 {[%clk 0:01:00.3]} 13... Nxe4 {[%clk
0:01:56.5]} 14. Bxe4 {[%clk 0:01:01.2]} 14... d5 {[%clk 0:01:57.8]} 15. Bf3
{[%clk 0:00:53]} 15... Ba6 {[%clk 0:01:19.8]} 16. Qa4 {[%clk 0:00:33.6]} 16...
Qb6 {[%clk 0:01:12]} 17. b4 {[%clk 0:00:28.9]} 17... Bb5 {[%clk 0:00:41.1]} 18.
Qd1 {[%clk 0:00:29.3]} 18... Rac8 {[%clk 0:00:38.5]} 19. a4 {[%clk 0:00:28.6]}
19... Bc4 {[%clk 0:00:38]} 20. a5 {[%clk 0:00:21.2]} 20... Qb5 {[%clk
0:00:37.8]} 21. bxc5 {[%clk 0:00:21.6]} 21... Bxc5 {[%clk 0:00:37]} 22. Nd4
{[%clk 0:00:22.9]} 22... Bxd4 {[%clk 0:00:36.2]} 23. cxd4 {[%clk 0:00:11.2]}
23... Bxf1 {[%clk 0:00:36.3]} 24. Qxf1 {[%clk 0:00:12.5]} 24... Qxf1+ {[%clk
0:00:37.7]} 25. Rxf1 {[%clk 0:00:14.1]} 25... Nxa5 {[%clk 0:00:35.8]} 26. Ra1
{[%clk 0:00:11.4]} 26... Nc4 {[%clk 0:00:37]} 27. Bc1 {[%clk 0:00:09.9]} 27...
a5 {[%clk 0:00:38.3]} 28. Bg4 {[%clk 0:00:10.3]} 28... Kf7 {[%clk 0:00:38.1]}
29. Kf2 {[%clk 0:00:04.8]} 29... Rb8 {[%clk 0:00:37.9]} 30. Ke2 {[%clk
0:00:04.1]} 30... Rb3 {[%clk 0:00:38.4]} 31. f5 {[%clk 0:00:04.1]} 31... exf5
{[%clk 0:00:37.6]} 32. Bxf5 {[%clk 0:00:06]} 32... Rfb8 {[%clk 0:00:33.8]} 33.
Bc2 {[%clk 0:00:05.5]} 33... Rc3 {[%clk 0:00:25.7]} 34. Ba4 {[%clk 0:00:06.5]}
34... Rb4 {[%clk 0:00:21.1]} 35. Bc6 {[%clk 0:00:06.2]} 35... Ke6 {[%clk
0:00:16.4]} 36. Kf2 {[%clk 0:00:02.3]} 36... Rcb3 {[%clk 0:00:16.1]} 37. Bf4
{[%clk 0:00:02.8]} 37... Rb1 {[%clk 0:00:14.9]} 38. Rxb1 {[%clk 0:00:02.9]}
38... Rxb1 {[%clk 0:00:15.5]} 39. Ke2 {[%clk 0:00:03.7]} 39... Rb2+ {[%clk
0:00:15.9]} 40. Kf3 {[%clk 0:00:04.7]} 40... Rb6 {[%clk 0:00:13]} 41. Ba4 {[%clk
0:00:05.1]} 41... Rb4 {[%clk 0:00:13.7]} 42. Bd1 {[%clk 0:00:06.2]} 42... a4
{[%clk 0:00:14.8]} 43. Ke2 {[%clk 0:00:07]} 43... a3 {[%clk 0:00:15.8]} 44. Kd3
{[%clk 0:00:08.4]} 44... a2 {[%clk 0:00:16.8]} 45. Bg4+ {[%clk 0:00:09.6]} 45...
Kf7 {[%clk 0:00:15.5]} 46. Kc3 {[%clk 0:00:11.1]} 46... a1=Q+ {[%clk 0:00:16.3]}
47. Kxb4 {[%clk 0:00:12.5]} 47... Qxd4 {[%clk 0:00:16.5]} 48. Bg3 {[%clk
0:00:12.2]} 48... Qxg4 {[%clk 0:00:16.6]} 49. Kc5 {[%clk 0:00:12.2]} 49... Ne3
{[%clk 0:00:17]} 50. Bf2 {[%clk 0:00:11]} 50... Qc4+ {[%clk 0:00:17.1]} 51. Kd6
{[%clk 0:00:10.6]} 51... Nxg2 {[%clk 0:00:19]} 52. Ke5 {[%clk 0:00:09.6]} 52...
Qe4+ {[%clk 0:00:19.1]} 53. Kd6 {[%clk 0:00:10.6]} 53... Qf4+ {[%clk 0:00:20.5]}
0-1

[Event "*** Titled Tuesday Blitz"]
[Site "Chess.com"]
[Date "2019.08.06"]
[Round "9"]
[White "nocnypako"]
[Black "Heineccius"]
[Result "1-0"]
[WhiteElo "2589"]
[BlackElo "2542"]
[TimeControl "180+2"]
[EndTime "15:09:56 PDT"]
[Termination "nocnypako won on time"]

1. d4 {[%clk 0:03:01.9]} 1... Nf6 {[%clk 0:03:00.5]} 2. c4 {[%clk 0:03:02.7]}
2... e6 {[%clk 0:03:01.5]} 3. Nc3 {[%clk 0:03:01.6]} 3... Bb4 {[%clk 0:02:59.4]}
4. e3 {[%clk 0:02:58.5]} 4... d5 {[%clk 0:02:57.7]} 5. a3 {[%clk 0:02:55.7]}
5... Be7 {[%clk 0:02:46]} 6. Nf3 {[%clk 0:02:54.5]} 6... b6 {[%clk 0:02:37.9]}
7. cxd5 {[%clk 0:02:52.3]} 7... Nxd5 {[%clk 0:02:27.3]} 8. Bd3 {[%clk
0:02:52.2]} 8... O-O {[%clk 0:02:26.7]} 9. O-O {[%clk 0:02:48.3]} 9... Bb7
{[%clk 0:02:27.2]} 10. Bd2 {[%clk 0:02:39.1]} 10... c5 {[%clk 0:02:27.1]} 11.
Qe2 {[%clk 0:02:39.1]} 11... cxd4 {[%clk 0:02:17.6]} 12. Nxd4 {[%clk 0:02:38.5]}
12... Bf6 {[%clk 0:02:02.4]} 13. Rfd1 {[%clk 0:02:03.3]} 13... Bxd4 {[%clk
0:01:47.4]} 14. exd4 {[%clk 0:02:05.2]} 14... Nc6 {[%clk 0:01:47.7]} 15. Nxd5
{[%clk 0:02:01]} 15... Qxd5 {[%clk 0:01:46.8]} 16. Bc3 {[%clk 0:02:02.5]} 16...
Ne5 {[%clk 0:01:09.2]} 17. Be4 {[%clk 0:01:39.6]} 17... Qxe4 {[%clk 0:01:09]}
18. Qxe4 {[%clk 0:01:41.5]} 18... Bxe4 {[%clk 0:01:10.1]} 19. dxe5 {[%clk
0:01:42.7]} 19... Bd5 {[%clk 0:01:11.3]} 20. f3 {[%clk 0:01:42.9]} 20... Rfc8
{[%clk 0:01:12]} 21. Kf2 {[%clk 0:01:44.2]} 21... a5 {[%clk 0:01:12.8]} 22. Ke3
{[%clk 0:01:45.1]} 22... Rc4 {[%clk 0:01:12.4]} 23. Rd4 {[%clk 0:01:45.7]} 23...
Rac8 {[%clk 0:01:13.5]} 24. Rad1 {[%clk 0:01:45.1]} 24... Kf8 {[%clk 0:01:13.4]}
25. g4 {[%clk 0:01:43.4]} 25... h6 {[%clk 0:01:09.8]} 26. f4 {[%clk 0:01:44.1]}
26... Rxd4 {[%clk 0:01:04.5]} 27. Rxd4 {[%clk 0:01:46]} 27... Ke7 {[%clk
0:01:03.7]} 28. f5 {[%clk 0:01:45.7]} 28... Rc4 {[%clk 0:01:03.7]} 29. Rxc4
{[%clk 0:01:41.5]} 29... Bxc4 {[%clk 0:01:04.1]} 30. Bd4 {[%clk 0:01:43.1]}
30... b5 {[%clk 0:01:03.2]} 31. Bc5+ {[%clk 0:01:43.4]} 31... Ke8 {[%clk
0:01:03.1]} 32. Kf4 {[%clk 0:01:40.4]} 32... Be2 {[%clk 0:00:59.6]} 33. h4
{[%clk 0:01:40.1]} 33... h5 {[%clk 0:00:57.6]} 34. gxh5 {[%clk 0:01:39.1]} 34...
exf5 {[%clk 0:00:53.4]} 35. Kg5 {[%clk 0:01:07.3]} 35... f4 {[%clk 0:00:45.9]}
36. h6 {[%clk 0:00:44.3]} 36... gxh6+ {[%clk 0:00:46.2]} 37. Kxh6 {[%clk
0:00:46.2]} 37... Kd7 {[%clk 0:00:45.5]} 38. Kg5 {[%clk 0:00:47.1]} 38... f3
{[%clk 0:00:45.6]} 39. h5 {[%clk 0:00:46.8]} 39... Ke6 {[%clk 0:00:46.1]} 40. h6
{[%clk 0:00:45.5]} 40... Bd3 {[%clk 0:00:46.5]} 41. Kf4 {[%clk 0:00:46.5]} 41...
Kd5 {[%clk 0:00:39.5]} 42. Bb6 {[%clk 0:00:46.7]} 42... a4 {[%clk 0:00:36.2]}
43. Bc7 {[%clk 0:00:47.5]} 43... Kc4 {[%clk 0:00:33.5]} 44. Kxf3 {[%clk
0:00:45.4]} 44... Kb3 {[%clk 0:00:33.2]} 45. Ke3 {[%clk 0:00:46.6]} 45... Bb1
{[%clk 0:00:28]} 46. Bd6 {[%clk 0:00:43.6]} 46... Kxb2 {[%clk 0:00:27]} 47. Kf4
{[%clk 0:00:45.2]} 47... Kc3 {[%clk 0:00:25.8]} 48. Kg5 {[%clk 0:00:46.7]} 48...
Kd4 {[%clk 0:00:22.4]} 49. Kf6 {[%clk 0:00:47.7]} 49... Be4 {[%clk 0:00:21.6]}
50. Kxf7 {[%clk 0:00:44.8]} 50... b4 {[%clk 0:00:22.6]} 51. e6 {[%clk
0:00:23.6]} 51... b3 {[%clk 0:00:05.6]} 52. Bf8 {[%clk 0:00:23.6]} 1-0

[Event "*** Titled Tuesday Blitz"]
[Site "Chess.com"]
[Date "2019.08.06"]
[Round "9"]
[White "chickencrossroad"]
[Black "Kawhi_Leonard2"]
[Result "1/2-1/2"]
[WhiteElo "2483"]
[BlackElo "2363"]
[TimeControl "180+2"]
[EndTime "15:10:07 PDT"]
[Termination "Game drawn - insufficient material"]

1. d4 {[%clk 0:03:01.9]} 1... Nf6 {[%clk 0:03:00.2]} 2. c4 {[%clk 0:03:02.1]}
2... c5 {[%clk 0:03:01.3]} 3. d5 {[%clk 0:03:02.5]} 3... e6 {[%clk 0:03:02.8]}
4. Nc3 {[%clk 0:03:03.6]} 4... exd5 {[%clk 0:03:04.7]} 5. cxd5 {[%clk
0:03:05.4]} 5... d6 {[%clk 0:03:06.1]} 6. Nf3 {[%clk 0:02:59.7]} 6... g6 {[%clk
0:03:07.6]} 7. Nd2 {[%clk 0:02:53.7]} 7... Bg7 {[%clk 0:03:08.4]} 8. e4 {[%clk
0:02:54.9]} 8... O-O {[%clk 0:03:09.1]} 9. Be2 {[%clk 0:02:43.9]} 9... Re8
{[%clk 0:03:10.1]} 10. O-O {[%clk 0:02:44.9]} 10... Nbd7 {[%clk 0:03:11.2]} 11.
Nc4 {[%clk 0:02:35.7]} 11... Nxe4 {[%clk 0:02:52.1]} 12. Nxe4 {[%clk 0:02:36.2]}
12... Rxe4 {[%clk 0:02:53]} 13. Nxd6 {[%clk 0:02:34.9]} 13... Rd4 {[%clk
0:02:53.9]} 14. Qb3 {[%clk 0:02:36.1]} 14... Nb6 {[%clk 0:02:52.9]} 15. Nxc8
{[%clk 0:02:12]} 15... Rxc8 {[%clk 0:02:53.7]} 16. Be3 {[%clk 0:01:49.7]} 16...
Rxd5 {[%clk 0:02:50.9]} 17. Bf3 {[%clk 0:01:51.2]} 17... Rd7 {[%clk 0:02:49.3]}
18. a4 {[%clk 0:01:49.9]} 18... c4 {[%clk 0:02:47.4]} 19. Qb5 {[%clk 0:01:49.9]}
19... Nd5 {[%clk 0:01:49.6]} 20. Bxd5 {[%clk 0:01:48.7]} 20... Rxd5 {[%clk
0:01:49.6]} 21. Qxb7 {[%clk 0:01:50.3]} 21... a5 {[%clk 0:01:34.4]} 22. Bf4
{[%clk 0:00:53.3]} 22... Qd7 {[%clk 0:01:30.5]} 23. Qxd7 {[%clk 0:00:36.1]}
23... Rxd7 {[%clk 0:01:30.7]} 24. Ra2 {[%clk 0:00:21.4]} 24... Rb7 {[%clk
0:01:16.9]} 25. Bc1 {[%clk 0:00:17.6]} 25... Rcb8 {[%clk 0:01:08.1]} 26. Re1
{[%clk 0:00:08.1]} 26... Bxb2 {[%clk 0:01:00.4]} 27. Bxb2 {[%clk 0:00:03.9]}
27... Rxb2 {[%clk 0:01:01.1]} 28. Rxb2 {[%clk 0:00:05.8]} 28... Rxb2 {[%clk
0:01:01.1]} 29. Rc1 {[%clk 0:00:06.2]} 29... Rb4 {[%clk 0:01:00.7]} 30. Ra1
{[%clk 0:00:07.4]} 30... c3 {[%clk 0:01:00.4]} 31. Kf1 {[%clk 0:00:06.9]} 31...
Rb2 {[%clk 0:00:53.3]} 32. Rc1 {[%clk 0:00:05.2]} 32... c2 {[%clk 0:00:53]} 33.
Ke2 {[%clk 0:00:05.9]} 33... Ra2 {[%clk 0:00:54.3]} 34. Kd3 {[%clk 0:00:04.9]}
34... Rxa4 {[%clk 0:00:55.4]} 35. Rxc2 {[%clk 0:00:06.2]} 35... Kg7 {[%clk
0:00:54.2]} 36. Rc6 {[%clk 0:00:05.8]} 36... Ra2 {[%clk 0:00:52.1]} 37. Ke3
{[%clk 0:00:05.8]} 37... a4 {[%clk 0:00:50.8]} 38. Ra6 {[%clk 0:00:06.7]} 38...
h5 {[%clk 0:00:48.9]} 39. h4 {[%clk 0:00:07.6]} 39... Kf8 {[%clk 0:00:50.1]} 40.
Ra7 {[%clk 0:00:08.5]} 40... Ra1 {[%clk 0:00:46.6]} 41. Kf4 {[%clk 0:00:08.3]}
41... a3 {[%clk 0:00:45.5]} 42. Kg5 {[%clk 0:00:05.9]} 42... Kg7 {[%clk
0:00:46.6]} 43. Kf4 {[%clk 0:00:05.2]} 43... Kf6 {[%clk 0:00:42]} 44. Ra6+
{[%clk 0:00:06]} 44... Ke7 {[%clk 0:00:42.8]} 45. Ra7+ {[%clk 0:00:07.9]} 45...
Ke6 {[%clk 0:00:44.1]} 46. Ra5 {[%clk 0:00:08.1]} 46... Kd6 {[%clk 0:00:41.8]}
47. Kg3 {[%clk 0:00:07.8]} 47... Kc6 {[%clk 0:00:37.9]} 48. Ra7 {[%clk
0:00:08.8]} 48... Kc5 {[%clk 0:00:34.4]} 49. Rxf7 {[%clk 0:00:08.6]} 49... Rb1
{[%clk 0:00:25.2]} 50. Ra7 {[%clk 0:00:06.6]} 50... Rb3+ {[%clk 0:00:25.5]} 51.
Kf4 {[%clk 0:00:04.9]} 51... Kb4 {[%clk 0:00:26.6]} 52. Kg5 {[%clk 0:00:03.3]}
52... Rb2 {[%clk 0:00:26]} 53. Kxg6 {[%clk 0:00:03]} 53... Rxf2 {[%clk
0:00:26.8]} 54. Kxh5 {[%clk 0:00:04.7]} 54... Rxg2 {[%clk 0:00:28.1]} 55. Kh6
{[%clk 0:00:05.9]} 55... a2 {[%clk 0:00:26.3]} 56. h5 {[%clk 0:00:06.4]} 56...
Kb3 {[%clk 0:00:27.7]} 57. Kh7 {[%clk 0:00:07]} 57... Rg1 {[%clk 0:00:28.9]} 58.
h6 {[%clk 0:00:07.2]} 58... a1=Q {[%clk 0:00:30.3]} 59. Rxa1 {[%clk 0:00:08]}
59... Rxa1 {[%clk 0:00:31.1]} 60. Kg8 {[%clk 0:00:09.9]} 60... Rg1+ {[%clk
0:00:31.8]} 61. Kf7 {[%clk 0:00:10.3]} 61... Rh1 {[%clk 0:00:32.1]} 62. Kg7
{[%clk 0:00:11.2]} 62... Rxh6 {[%clk 0:00:32.4]} 63. Kxh6 {[%clk 0:00:12.3]}
1/2-1/2

[Event "*** Titled Tuesday Blitz"]
[Site "Chess.com"]
[Date "2019.08.06"]
[Round "9"]
[White "Pechen_Yeltsina"]
[Black "Orest_Vovk"]
[Result "1-0"]
[WhiteElo "2659"]
[BlackElo "2238"]
[TimeControl "180+2"]
[EndTime "15:10:13 PDT"]
[Termination "Pechen_Yeltsina won by resignation"]

1. e4 {[%clk 0:03:01.2]} 1... g5 {[%clk 0:03:00.5]} 2. d4 {[%clk 0:03:02.3]}
2... Bg7 {[%clk 0:03:00.7]} 3. c3 {[%clk 0:02:57.9]} 3... h6 {[%clk 0:03:01.3]}
4. Bd3 {[%clk 0:02:57.3]} 4... d5 {[%clk 0:03:02.4]} 5. e5 {[%clk 0:02:53.8]}
5... c5 {[%clk 0:03:03.9]} 6. Ne2 {[%clk 0:02:49.8]} 6... Nc6 {[%clk 0:03:05.3]}
7. h4 {[%clk 0:02:49.2]} 7... Qb6 {[%clk 0:02:58.3]} 8. hxg5 {[%clk 0:02:47.5]}
8... hxg5 {[%clk 0:02:53.2]} 9. Rxh8 {[%clk 0:02:49.4]} 9... Bxh8 {[%clk
0:02:54.9]} 10. b3 {[%clk 0:02:33.1]} 10... cxd4 {[%clk 0:02:53.7]} 11. cxd4
{[%clk 0:02:35]} 11... Bg4 {[%clk 0:02:19.1]} 12. f3 {[%clk 0:02:30.4]} 12...
Bd7 {[%clk 0:02:19.3]} 13. Bb2 {[%clk 0:02:24.4]} 13... Nb4 {[%clk 0:02:07.8]}
14. Nbc3 {[%clk 0:02:24.7]} 14... e6 {[%clk 0:01:53.5]} 15. Rc1 {[%clk
0:02:16.6]} 15... Ne7 {[%clk 0:01:32.3]} 16. Bb1 {[%clk 0:02:09.7]} 16... f6
{[%clk 0:01:00.9]} 17. exf6 {[%clk 0:02:08.7]} 17... Bxf6 {[%clk 0:01:01.3]} 18.
a3 {[%clk 0:02:05.6]} 18... Nbc6 {[%clk 0:00:53.1]} 19. Na4 {[%clk 0:02:05.7]}
19... Qc7 {[%clk 0:00:54]} 20. b4 {[%clk 0:01:54.8]} 20... Qh2 {[%clk
0:00:52.2]} 21. Kf2 {[%clk 0:01:56.1]} 21... g4 {[%clk 0:00:34.8]} 22. Qh1
{[%clk 0:01:43.5]} 22... Bh4+ {[%clk 0:00:09.2]} 23. Ke3 {[%clk 0:01:43]} 23...
Bg5+ {[%clk 0:00:10.1]} 24. f4 {[%clk 0:01:29.9]} 24... Qxh1 {[%clk 0:00:04.4]}
25. Rxh1 {[%clk 0:01:30.2]} 25... Bf6 {[%clk 0:00:06.3]} 26. Nc5 {[%clk
0:01:30.2]} 26... b6 {[%clk 0:00:05.6]} 27. Nxd7 {[%clk 0:01:23.1]} 27... Kxd7
{[%clk 0:00:07.5]} 28. Rh6 {[%clk 0:01:22.2]} 28... Rf8 {[%clk 0:00:07.4]} 29.
Rh7 {[%clk 0:01:16.7]} 29... Kd6 {[%clk 0:00:07.3]} 30. Bc3 {[%clk 0:01:16.2]}
30... b5 {[%clk 0:00:07]} 31. Bd3 {[%clk 0:01:15.2]} 31... a6 {[%clk 0:00:07.9]}
32. Ng3 {[%clk 0:01:14.9]} 32... Re8 {[%clk 0:00:07.7]} 33. Nh5 {[%clk
0:01:13.5]} 33... Nf5+ {[%clk 0:00:08]} 34. Bxf5 {[%clk 0:01:13.1]} 34... exf5+
{[%clk 0:00:09.9]} 35. Kd3 {[%clk 0:01:14.5]} 35... Re6 {[%clk 0:00:09.6]} 36.
Rh6 {[%clk 0:01:10.2]} 36... Be7 {[%clk 0:00:08.2]} 37. Ng7 {[%clk 0:01:10.6]}
37... Rxh6 {[%clk 0:00:06.8]} 38. Nxf5+ {[%clk 0:01:12]} 38... Ke6 {[%clk
0:00:07.9]} 39. Nxh6 {[%clk 0:01:13.9]} 39... Bd6 {[%clk 0:00:07.1]} 40. g3
{[%clk 0:01:11.8]} 40... Ne7 {[%clk 0:00:06.9]} 41. Nxg4 {[%clk 0:01:10.6]}
41... Nf5 {[%clk 0:00:08.2]} 42. Be1 {[%clk 0:01:12]} 42... Bf8 {[%clk
0:00:05.8]} 43. Ne3 {[%clk 0:01:12.6]} 43... Bg7 {[%clk 0:00:04.8]} 44. Nc2
{[%clk 0:01:04.9]} 44... Nh6 {[%clk 0:00:04.8]} 45. Ke3 {[%clk 0:01:03.9]} 45...
Ng4+ {[%clk 0:00:05.2]} 46. Kf3 {[%clk 0:01:04.6]} 46... Kf5 {[%clk 0:00:07.1]}
47. Bf2 {[%clk 0:01:00.1]} 47... Nh2+ {[%clk 0:00:08.2]} 48. Kg2 {[%clk
0:00:57.8]} 48... Ng4 {[%clk 0:00:09.7]} 49. Bg1 {[%clk 0:00:54.9]} 49... Ke4
{[%clk 0:00:09.9]} 50. Kh3 {[%clk 0:00:55.8]} 50... Nh6 {[%clk 0:00:06.1]} 51.
Kh4 {[%clk 0:00:42.4]} 51... Nf5+ {[%clk 0:00:07]} 52. Kg4 {[%clk 0:00:43.6]}
52... Nxd4 {[%clk 0:00:08.4]} 53. Nxd4 {[%clk 0:00:33.9]} 53... Bxd4 {[%clk
0:00:09.8]} 54. Bxd4 {[%clk 0:00:35.8]} 54... Kxd4 {[%clk 0:00:11.7]} 55. f5
{[%clk 0:00:37.3]} 55... Ke5 {[%clk 0:00:12.1]} 56. Kg5 {[%clk 0:00:38.3]} 56...
d4 {[%clk 0:00:10.7]} 57. f6 {[%clk 0:00:39.6]} 57... Ke6 {[%clk 0:00:09.7]} 58.
Kg6 {[%clk 0:00:40.2]} 58... d3 {[%clk 0:00:10.5]} 59. f7 {[%clk 0:00:41.5]}
59... d2 {[%clk 0:00:10.4]} 60. f8=Q {[%clk 0:00:42.6]} 1-0